Cogmind - Beta 13 @@@ ROGUE MODE // 2024.04.06 @ 13:31:28 Player: Salek Result: Destroyed by G-50 Soldier with Heavy Laser Performance ------------- Evolutions (2) 1000 Regions Visited (5) 1000 Robots Destroyed (40) 200 Value Destroyed (1068) 1068 Prototype IDs (2) 40 Alien Tech Used (0) 0 Bonus (300) 300 TOTAL SCORE: 3608 Bonus ------- Aligned with FarCom 300 Cogmind --------- Core Integrity 0/550 Matter 290/300 Energy 100/100 System Corruption 0% Temperature Cool (9) Movement Core (50) Location -8/Materials Parts ------- > --- POWER (1) -------- (None) > --- PROPULSION (4) --- (None) > --- UTILITY (4) ------ Improved Heat Sink Improved Heat Sink Improved Terrain Scan Processor > --- WEAPON (2) ------- (None) > --- INVENTORY (5) ---- Nuclear Core Nuclear Core Flight Unit Peak State ------------ > --- POWER ------------ Ion Engine > --- PROPULSION ------- Improved Aluminum Leg Improved Aluminum Leg > --- UTILITY ---------- Heat Sink Small Storage Unit > --- WEAPON ----------- AWS/Thermal > --- INVENTORY -------- Nuclear Core Nuclear Core Improved Aluminum Leg Improved Aluminum Leg Small Laser Light Assault Rifle [Rating: 24] Favorites ----------- Power Ion Engine Engine Ion Engine Power Core Light Nuclear Core Propulsion Improved Aluminum Leg Treads Light Treads Leg Improved Aluminum Leg Utility Small Storage Unit Device Heat Sink Storage Small Storage Unit Processor Improved Terrain Scan Processor Weapon Autogun Energy Gun AWS/Thermal Energy Cannon Heavy Particle Cannon Ballistic Gun Autogun Build | -11 -10 -10 -10 -9 -8 ------- Run | Yrd Mat Min Exi Min Mat Slots Evolved 4 | . . . . . 4 Power . | . . . . . . Propulsion 2 | . . . . . 2 Utility 2 | . . . . . 2 Weapon . | . . . . . . Parts Attached 34 | 6 6 . 3 2 17 Power 3 | 1 . . 1 . 1 Engine 2 | 1 . . 1 . . Core 1 | . . . . . 1 Reactor . | . . . . . . Propulsion 10 | 2 2 . . . 6 Treads 2 | 2 . . . . . Leg 8 | . 2 . . . 6 Wheel . | . . . . . . Hover . | . . . . . . Flight . | . . . . . . Utility 7 | 1 1 . 1 . 4 Device 5 | . 1 . 1 . 3 Storage 1 | 1 . . . . . Processor 1 | . . . . . 1 Hackware . | . . . . . . Protection . | . . . . . . Artifact . | . . . . . . Weapon 14 | 2 3 . 1 2 6 Energy Gun 5 | 1 . . 1 1 2 Energy Cannon 1 | . . . . . 1 Ballistic Gun 8 | 1 3 . . 1 3 Ballistic Cannon . | . . . . . . Launcher . | . . . . . . Special Weapon . | . . . . . . Impact Weapon . | . . . . . . Slashing Weapon . | . . . . . . Piercing Weapon . | . . . . . . Special Melee Weapon . | . . . . . . Unidentified Prototypes 2 | . . . 2 . . Parts Lost 19 | . . . . 1 18 Power 2 | . . . . . 2 Propulsion 8 | . . . . 1 7 Utility 3 | . . . . . 3 Weapon 6 | . . . . . 6 Highest Loss Streak 8 | . . . . 1 8 To Critical Strikes . | . . . . . . Average Slot Usage (%) 85 | . 85 100 93 88 64 Engine 12 | . 14 14 14 14 5 Treads 1 | . 7 . . . . Leg 25 | . 20 28 28 27 22 Device 11 | . 1 14 13 14 10 Storage 12 | . 14 14 14 14 7 Energy Gun 6 | . . . 6 14 1 Energy Cannon 1 | . . . . . 5 Ballistic Gun 12 | . 26 28 15 3 7 Naked Turns . | . . . . . . Heaviest Build 20 | 10 15 15 19 19 20 Greatest Support 40 | 40 40 26 26 26 39 Greatest Overweight (x) 2 | . . . . . 2 Average Overweight (x) . | . . . . . . Largest Inventory Capacity 8 | 8 8 8 8 8 8 Average Capacity 7 | 7 8 8 8 8 7 Most Carried 8 | 7 8 8 8 8 7 Average Carried 6 | 3 6 7 7 6 5 Final Capacity 8 | 8 8 8 8 8 5 Final Carried 8 | 4 7 8 6 6 3 Class Distribution -------------------- 95% | Mutant 4% | Scavenger-Mutant Dominant Class ---------------- Mutant | -10/Materials Mutant | -10/Mines Mutant | -10/Exiles Mutant | -9/Mines Mutant | -8/Materials Resources | -11 -10 -10 -10 -9 -8 ----------- Run | Yrd Mat Min Exi Min Mat Matter Collected 1000 | 260 289 145 . 85 221 Remotely 18 | . . . . . 18 Salvage Created 1210 | . 259 145 . 446 360 Parts 63 | . 17 6 . 24 16 Haulers Intercepted . | . . . . . . Recyclers Shooed 1 | . 1 . . . . Parts Field Recycled . | . . . . . . Retrieved Matter . | . . . . . . Parts Self-Destructed . | . . . . . . Prevented . | . . . . . . Kills | -11 -10 -10 -10 -9 -8 ------- Run | Yrd Mat Min Exi Min Mat Combat Hostiles Destroyed 36 | . 7 5 . 13 11 Guns 34 | . 7 5 . 13 9 Cannons 2 | . . . . . 2 Classes Destroyed 4 | 1 3 . . . . Worker 3 | 1 1 . . . 1 Watcher 1 | . 1 . . . . Swarmer 13 | . 3 3 . 3 4 Grunt 23 | . 4 2 . 10 7 Best Kill Streak 5 | 1 4 3 . 4 5 Combat Bots Only 4 | . 4 3 . 4 4 Max Kills in Single Turn 1 | 1 1 1 . 1 1 Gunslinging . | . . . . . . Exploded . | . . . . . . Melee . | . . . . . . Uniques/NPCs Destroyed . | . . . . . . Combat | -11 -10 -10 -10 -9 -8 -------- Run | Yrd Mat Min Exi Min Mat Hostile Shots Fired 310 | . 40 26 . 63 181 Missed 84 | . 14 6 . 19 45 Damage Taken 2929 | . 248 185 . 483 2013 Core 738 | . 28 43 . 111 556 Absorbed by Shields . | . . . . . . Regen/Repaired (Parts) 66 | . 66 . . . . Core Remaining (%) 63 | 100 . . . 27 . Volleys Fired 129 | . 36 15 . 10 68 Largest 2 | . 2 2 . 2 2 Hottest 100 | . 46 46 . 60 100 Shots Fired 267 | . 72 30 . 71 94 Gun 244 | . 72 30 . 71 71 Cannon 23 | . . . . . 23 Launcher . | . . . . . . Special . | . . . . . . Kinetic 166 | . 72 30 . 10 54 Thermal 101 | . . . . 61 40 Explosive . | . . . . . . Electromagnetic . | . . . . . . Robot Hit Streak 15 | . 4 6 . 15 8 Robot Miss Streak 5 | . 5 4 . 3 5 Penetration Max . | . . . . . . Secondary Targets 3 | . 1 2 . . . Max Gunslinging Chain 1 | . 1 1 . . . Autonomous 52 | . . . . 52 . Shots Hit Robots 150 | . 26 16 . 48 60 Core Hits 67 | 1 9 7 . 16 34 Critical Kills . | . . . . . . Critical Parts Destroyed . | . . . . . . Critical Strikes . | . . . . . . Melee Attacks . | . . . . . . Impact . | . . . . . . Slashing . | . . . . . . Piercing . | . . . . . . Sneak Attacks . | . . . . . . Combat Hostiles . | . . . . . . Follow-up Attacks . | . . . . . . Damage Inflicted 2909 | 3 426 236 . 1141 1103 Guns 2550 | . 426 233 . 1136 755 Cannons 325 | . . . . . 325 Explosions . | . . . . . . Melee . | . . . . . . Ramming 34 | 3 . 3 . 5 23 Kinetic 1289 | . 426 233 . 53 577 Thermal 1586 | . . . . 1083 503 Explosive . | . . . . . . Electromagnetic . | . . . . . . Impact . | . . . . . . Slashing . | . . . . . . Piercing . | . . . . . . Highest Corruption . | . . . . . . Average Corruption . | . . . . . . Corruption Purged . | . . . . . . Corruption Blocked . | . . . . . . Overload Shots . | . . . . . . Overflow Damage 5 | . . . . . 5 Projectiles 5 | . . . . . 5 Explosions . | . . . . . . Melee . | . . . . . . Knockbacks 1 | . . . . . 1 Impact 1 | . . . . . 1 Kinetic . | . . . . . . Secondary . | . . . . . . Self-Inflicted Damage . | . . . . . . Shots . | . . . . . . Rammed . | . . . . . . Targets Rammed 14 | 1 . 1 . 3 9 Kicked 13 | . . 1 . 3 9 Crushed 1 | 1 . . . . . Highest Temperature 27 | . 24 2 . 6 27 Average Temperature 7 | . 8 2 . 6 7 Received Heat Transfer 1104 | . 84 33 . 258 729 Siege Activations . | . . . . . . Robots Corrupted . | . . . . . . Combat Hostiles . | . . . . . . Parts Fried . | . . . . . . Impact Corruptions . | . . . . . . Robots Melted . | . . . . . . Combat Hostiles . | . . . . . . Parts Melted 1 | . . . . 1 . Heat Transferred 2287 | . . . . 1420 867 Parts Sabotaged . | . . . . . . Parts Stolen . | . . . . . . Parts Stripped . | . . . . . . Power Chain Reactions . | . . . . . . Alert | -11 -10 -10 -10 -9 -8 ------- Run | Yrd Mat Min Exi Min Mat Peak Influence 261 | . 156 180 . 261 176 Initial 46 | . 3 30 . . 46 Average 74 | . 100 125 . 68 54 Maximum Alert Level 1 | . . . . 1 . Low Security (%) 94 | 100 100 100 . 86 100 Level 1 5 | . . . . 13 . Level 2 . | . . . . . . Level 3 . | . . . . . . Level 4 . | . . . . . . Level 5 . | . . . . . . High Security . | . . . . . . Max Security . | . . . . . . Squads Dispatched 4 | . 3 . . . 1 Investigation 1 | . 1 . . . . Extermination . | . . . . . . Reinforcement 3 | . 2 . . . 1 Assault . | . . . . . . Garrison . | . . . . . . Intercept . | . . . . . . Searches Triggered . | . . . . . . Construction Impeded . | . . . . . . Haulers Reinforced . | . . . . . . Active Scanning Responses . | . . . . . . Cargo Convoy Interrupts . | . . . . . . Stealth | -11 -10 -10 -10 -9 -8 --------- Run | Yrd Mat Min Exi Min Mat Distress Signals 3 | . 1 . . 2 . Communications Jammed . | . . . . . . Distress Signals . | . . . . . . Times Spotted 48 | . 15 5 . 13 15 Peak Tracking Total 4 | . 4 3 . 4 4 Tactical Retreats . | . . . . . . Traps | -11 -10 -10 -10 -9 -8 ------- Run | Yrd Mat Min Exi Min Mat Traps Triggered 2 | . . . . . 2 Indirectly . | . . . . . . Trap Hack Attempts . | . . . . . . Triggered . | . . . . . . Disarmed . | . . . . . . Reprogrammed . | . . . . . . Reused . | . . . . . . Traps Extracted . | . . . . . . Installed . | . . . . . . Triggered . | . . . . . . Machines | -11 -10 -10 -10 -9 -8 ---------- Run | Yrd Mat Min Exi Min Mat Machines Disabled 3 | . . 2 . . 1 Max in Single Turn 1 | . . 1 . . 1 Machines Repaired . | . . . . . . Machines Dismantled . | . . . . . . Machines Sabotaged . | . . . . . . Overloaded Fab Kills . | . . . . . . Hacking | -11 -10 -10 -10 -9 -8 --------- Run | Yrd Mat Min Exi Min Mat Machines Accessed 6 | . 2 . 2 . 2 Terminals 2 | . 1 . . . 1 Fabricators . | . . . . . . Repair Stations 1 | . 1 . . . . Recycling Units 1 | . . . . . 1 Scanalyzers . | . . . . . . Garrison Access . | . . . . . . Total Hacks 40 | . 7 . 24 . 9 Successful 32 | . 4 . 24 . 4 Failed 8 | . 3 . . . 5 Catastrophic 1 | . 1 . . . . Database Lockouts . | . . . . . . Manual 1 | . . . 1 . . Terminals 8 | . 3 . . . 5 Fabricators . | . . . . . . Repair Stations 4 | . 4 . . . . Recycling Units 4 | . . . . . 4 Scanalyzers . | . . . . . . Garrison Access . | . . . . . . Terminal Hacks 27 | . 1 . 24 . 2 Record 24 | . . . 24 . . Alert Level 1 | . . . . . 1 Patrol Status 1 | . . . . . 1 Recall Investigation 1 | . 1 . . . . Fabricator Hacks . | . . . . . . Repair Station Hacks 3 | . 3 . . . . Scan Component 2 | . 2 . . . . Repair 1 | . 1 . . . . Recycling Unit Hacks 2 | . . . . . 2 Report Inventory 1 | . . . . . 1 Retrieve Matter 1 | . . . . . 1 Scanalyzer . | . . . . . . Garrison Access Hacks . | . . . . . . Unauthorized Hacks . | . . . . . . Terminals . | . . . . . . Fabricators . | . . . . . . Repair Stations . | . . . . . . Recycling Units . | . . . . . . Scanalyzers . | . . . . . . Garrison Access . | . . . . . . Data Cores Recovered . | . . . . . . Used . | . . . . . . Hacking Detections 3 | . 1 . . . 2 Full Trace Events 1 | . 1 . . . . Feedback Events . | . . . . . . Feedback Blocked . | . . . . . . Robot Schematics Acquired . | . . . . . . Robots Built . | . . . . . . Authchips . | . . . . . . Time . | . . . . . . Total Robot Build Rating . | . . . . . . Part Schematics Acquired . | . . . . . . Parts Built . | . . . . . . Authchips . | . . . . . . Time . | . . . . . . Total Part Build Rating . | . . . . . . Parts Repaired 1 | . 1 . . . . Time 32 | . 32 . . . . Parts Recycled . | . . . . . . Recycled Matter . | . . . . . . Retrieved Matter . | . . . . . . Retrieved Components . | . . . . . . Parts Scanalyzed . | . . . . . . Part Schematics Acquired . | . . . . . . Parts Damaged . | . . . . . . Bothacking | -11 -10 -10 -10 -9 -8 ------------ Run | Yrd Mat Min Exi Min Mat Used RIF Installer . | . . . . . . Robots Hacked . | . . . . . . Non-combat . | . . . . . . Combat . | . . . . . . Robot Hacks Applied . | . . . . . . Relay Couplers Released . | . . . . . . Fabnet Peak Effective % . | . . . . . . Robots Rewired . | . . . . . . Allies Hacked . | . . . . . . Hacks Repelled . | . . . . . . Allies | -11 -10 -10 -10 -9 -8 -------- Run | Yrd Mat Min Exi Min Mat Total Allies . | . . . . . . Largest Group . | . . . . . . Highest-Rated Group . | . . . . . . Highest-Rated Ally . | . . . . . . Total Orders . | . . . . . . Ally Attacks . | . . . . . . Total Damage . | . . . . . . Kills . | . . . . . . Allies Corrupted . | . . . . . . Allies Melted . | . . . . . . Intel | -11 -10 -10 -10 -9 -8 ------- Run | Yrd Mat Min Exi Min Mat Robot Analysis Total . | . . . . . . Derelict Logs Recovered 3 | . . 1 . 2 . Drone Launches . | . . . . . . Drone Recoveries . | . . . . . . Exploration | -11 -10 -10 -10 -9 -8 ------------- Run | Yrd Mat Min Exi Min Mat Turns Passed 3401 | 100 518 279 819 998 687 Spaces Moved 2025 | 68 294 198 674 400 391 Core 39 | 26 . . . . 13 Treads 96 | 42 54 . . . . Legs 1890 | . 240 198 674 400 378 Wheels . | . . . . . . Hover . | . . . . . . Flight . | . . . . . . Fastest Speed 50 | 50 120 120 120 120 100 Average Speed 121 | 117 127 120 120 120 120 Slowest Speed 160 | 160 160 120 120 120 150 Overloaded Moves . | . . . . . . Propulsion Burnouts . | . . . . . . Robots Hopped . | . . . . . . Cave-ins Triggered . | . . . . . . Time Travels 1 | . . . 1 . . Exploration Rate (%) 45 | 5 51 33 91 72 23 Regions Visited 5 Branch Regions 3 Pre-discovered Areas 3 | . . . 1 2 . Known Exits Taken 1 | . . 1 . . . Unknown Exits Taken 4 | 1 1 . 1 1 . Scrap Searched 1 | . . . . 1 . Spaces Dug . | . . . . . . Terrain Destroyed 22 | . . . . 12 10 Melee . | . . . . . . Projectile 22 | . . . . 12 10 AOE . | . . . . . . Terrain Rammed . | . . . . . . Walls Destroyed . | . . . . . . Machines Disabled . | . . . . . . Actions | -11 -10 -10 -10 -9 -8 --------- Run | Yrd Mat Min Exi Min Mat Total 2794 | 88 384 215 689 900 518 Wait 538 | . 32 1 1 483 21 Move 2021 | 68 293 197 673 399 391 Hop . | . . . . . . Pick Up 43 | 12 11 1 5 2 12 Fast Attach . | . . . . . . Attach 27 | 6 2 . 2 2 15 Detach . | . . . . . . Swap 7 | . 4 . 1 . 2 Drop 16 | 2 6 . 7 1 . Fire 129 | . 36 15 . 10 68 Melee . | . . . . . . Ram . | . . . . . . Kick 13 | . . 1 . 3 9 Crush . | . . . . . . Escape Stasis . | . . . . . . Rewire . | . . . . . . Trap . | . . . . . . Miscellaneous . | . . . . . . Route ------- -11/Scrapyard -10/Materials (discovered 2 exits: [*Min x2]) -10/Mines (discovered 2 exits: [*Mat] / *Exi) -10/Exiles -9/Mines -8/Materials History --------- Turn | Location | Event 11 | -11/Scrapyard | Discovered new exit (range 14) 101 | -11/Scrapyard | Entered Materials 101 | -10/Materials | Discovered new exit (range 14) 315 | -10/Materials | Build established: Mutant 394 | -10/Materials | Repaired Autogun 433 | -10/Materials | Discovered new exit (range 8) 619 | -10/Materials | Entered Mines 743 | -10/Mines | Found a hidden stash of uninstalled traps 762 | -10/Mines | Identified exit to Exiles 851 | -10/Mines | Discovered new exit (range 5) 890 | -10/Mines | Deemed a non-threat by the Exiles lab entrance 898 | -10/Mines | Entered Exiles 948 | -10/Exiles | Met 8R-AWN 973 | -10/Exiles | Met EX-HEX 1041 | -10/Exiles | Met EX-DEC 1056 | -10/Exiles | Learned location of Zion (-7) 1131 | -10/Exiles | Discovered new exit (range 10) 1250 | -10/Exiles | Met EX-BIN 1275 | -10/Exiles | Aligned with FarCom system 1277 | -10/Exiles | Given EX-Vault access code 1313 | -10/Exiles | Opened EX-Vault 1324 | -10/Exiles | Found Prototype Device 1326 | -10/Exiles | Identified Chronowheel 1326 | -10/Exiles | Activated Chronowheel 1326 | -10/Exiles | Spacetime reconverged on an earlier point 1340 | -10/Exiles | Found Prototype Energy Gun 1342 | -10/Exiles | Identified AWS/Thermal 1373 | -10/Exiles | Warned to stay clear of 0b10 Research branches 1456 | -10/Exiles | Visited The Gauntlet 1717 | -10/Exiles | Left Exiles lab with AWS/Thermal 1717 | -10/Exiles | Entered Mines 1744 | -9/Mines | Learned location of Storage (-7) 1792 | -9/Mines | Excavation squad dispatched 1792 | -9/Mines | A large section of the Mines collapsed 2042 | -9/Mines | Excavation squad dispatched 2292 | -9/Mines | Excavation squad dispatched 2427 | -9/Mines | Core integrity fell below 50% 2485 | -9/Mines | Discovered new exit (range 9) 2715 | -9/Mines | Entered Materials 2715 | -8/Materials | Evolved 4 slots: Propulsion x2, Utility x2 3241 | -8/Materials | Core integrity fell below 50% 3242 | -8/Materials | Lost 8 parts (1p3n1u3w) 3307 | -8/Materials | Lost 3 parts (1u2w) 3346 | -8/Materials | Core integrity fell below 20% 3360 | -8/Materials | Lost 3 parts (1p1n1u) 3402 | -8/Materials | Destroyed by G-50 Soldier with Heavy Laser Last Messages --------------- Slug penetrates Wall. Penetrated by Slug. Slug penetrates Wall. Penetrated by Slug. Lgt. Nuclear Core destroyed. Penetrated by Slug. Acquired 8 matter. Acquired Lgt. Assault Rifle. Slug penetrates Electrolysis Chamber. Aluminum Leg destroyed. Penetrated by Slug. Tractor Beam destroyed. Penetrated by Slug. U-05 Engineer builds a Door. Critical hit (Burn: +37). Aluminum Leg destroyed. Critical hit (Burn: +37). Penetrated by Slug. Lgt. Assault Rifle destroyed. Aluminum Leg destroyed. Map ----- +----------------------------------------------------+ | #???????????????????????????????????????????? | | #???????????????????????????????????????????? | | #+####????? #????????????????????????????????????? | | ### ##???????????????????????????????????? | | ????????????????????????????????? | | ####### ????????????????????????????????? | | ## ######? ??????????????????????????????????? | | ?# # T ## ??????????????????????????????????? | | ?# # ## "??????????????????????????????????? | | ?# # ## ""??? ????????????????????????????? | | ?# # ## """"" #????????????????????????? | | ?# # ## """ #????????????????????????? | | ## # ## #????????????????????????? | | # # ## #????????????????????????? | | # # ## #????????????????????????? | | # # ## #????????????????????????? | | # ###+### " " #????????????????????????? | | # "T" #????????????????????????? | | + """ +????????????????????????? | | # #????????????????????????? | | # #????????????????????????? | | # ###########+###### ########?????????????????? | | # #??????# # # !#?????????????????? | | # #??????# = !# # #?????????????????? | | ## #??????# """ # # #?######??????????? | | ?# #??????# """"" # gg@ """ #?# ???????????? | | ?# #??????# """"" # g# """ #?# ???????????? | | ?# #??????# """"" # h # """ #?# ???????????? | | ?# #??????# """ # ########?# #???????????? | | ?# #??????# # #????????# ##??????????? | | ?# #??????########+## #??####### #???????????? | | ?# #?????????????# #??# ! # ########????? | | ?# #?????????????# #### # #%% #????? | | ## #?????????????# / """ # #% = #????? | | #?????????????# #### " " # =#%%% #????? | | #?????????????# #?## " / %%/% %= #????? | | #?????????????#####/##### # # % #????? | | #?????????????# ^ +! # #! #????? | | ##?????????????# ####### ########????? | | #??????????????# ^ #????# #??????????? | | ##########?????# #????# ?????????? | | # #?????# #????# ????????? | | #"" = #?????# """"" #????# ???????? | | #"Y #?????# """ #????# #####??????? | | #"" #?????# #????#######??????????? | | + #?????###########?????????????????????? | | # """#?????????????????????????????????????? | | # """#?????????????????????????????????????? | | ### """#?????????????????????????????????????? | | ??# #?????????????????????????????????????? | +----------------------------------------------------+ Best States ------------- Heat Dissipation 59 Energy Generation 14 Energy Capacity 250 Matter Stores 300 Matter Capacity 300 Sight Range 16 Terrain Scan Density 110 Evasion (%) 55 Recoil Reduction 2 Item Schematics ----------------- None Robot Schematics ------------------ None Fabricated ------------ Nothing Alien Tech Used ----------------- None Achievements -------------- Librarian Challenges ------------ None Game ------ Seed ConstructPiercingPit Manual? 0 Play Time 00:28:55 Cumulative 2.9 hours Start 2024.04.06 @ 13:02:52 End 2024.04.06 @ 13:31:28 Sessions 1 Manual Loads 0 Difficulty Rogue Special Mode None Game No. 7 Rogue 7 Adventurer 0 Explorer 0 Win Type - Total 0 Types 0/0/0/0/0/0/0/0/0 Lore% 6 Gallery% 8 Achievement% 8 Wizard Run 0 Options --------- Layout 0 ASCII 0 Keyboard 0 Movement Arrows Keybinds 0 Fullscreen 1 Font 24/Smallcaps Map View 76x50 Zoom Use 0% Tactical HUD 0 Map Filters NONE Filters NONE Steam 1 RUN: a7dec397-ae41-49b7-8382-4ed94e51c9f1